fUST/lending_fUST_20251010
["ID","MTS","AMOUNT","RATE_DAILY","PERIOD"]
[390371948,1760032252508,-151.0,0.0001726,2]
[390371950,1760032252517,-151.0,0.0001726,2]
[390371952,1760032252527,-500.0,0.0001726,2]
[390371954,1760032252536,-500.0,0.0001726,2]
[390371956,1760032252544,-402.86798976,0.0001726,2]
[390371958,1760032252554,-806.43,0.0001726,2]
[390371960,1760032252563,-500.0,0.0001726,2]
[390371962,1760032252572,-500.0,0.0001726,2]
[390371964,1760032252582,-500.0,0.0001726,2]
[390371966,1760032252591,-500.0,0.0001726,2]
[390371968,1760032252601,-1180.17,0.0001726,2]
[390371970,1760032252610,-500.0,0.0001726,2]
[390371972,1760032252619,-309.93344232,0.0001726,2]
[390371974,1760032252628,-860.61,0.0001726,2]
[390371976,1760032252637,-726.41,0.0001726,2]
[390371978,1760032252646,-658.58,0.0001726,2]
[390371980,1760032252654,-546.78924313,0.0001726,2]
[390371982,1760032252663,-500.0,0.0001726,2]
[390371984,1760032252672,-500.0,0.0001726,2]
[390371986,1760032252681,-500.0,0.0001726,2]
[390371988,1760032252690,-834.59,0.0001726,2]
[390371990,1760032252699,-695.63,0.0001726,2]
[390371992,1760032252708,-500.0,0.0001726,2]
[390371994,1760032252717,-500.0,0.0001726,2]
[390371996,1760032252726,-624.4,0.0001726,2]
[390371998,1760032252735,-2096.59,0.0001726,2]
[390372000,1760032252745,-836.97,0.0001726,2]
[390372002,1760032252754,-500.0,0.0001726,2]
[390372004,1760032252763,-500.0,0.0001726,2]
[390372006,1760032252772,-500.0,0.0001726,2]
[390372008,1760032252780,-796.58,0.0001726,2]
[390372010,1760032252790,-555.86370929,0.0001726,2]
[390372012,1760032252801,-500.0,0.0001726,2]
[390372014,1760032252810,-1002.91,0.0001726,2]
[390372016,1760032252819,-500.0,0.0001726,2]
[390372018,1760032252828,-4599.23,0.0001726,2]
[390372020,1760032252838,-849.82,0.0001726,2]
[390372022,1760032252848,-500.0,0.0001726,2]
[390372024,1760032252857,-511.54,0.0001726,2]
[390372026,1760032252866,-500.0,0.0001726,2]
[390372028,1760032252875,-1589.21,0.0001726,2]
[390372030,1760032252884,-2413.16,0.0001726,2]
[390372032,1760032252893,-539.76,0.0001726,2]
[390372034,1760032252907,-5967.16,0.0001726,2]
[390372036,1760032252916,-500.0,0.0001726,2]
[390372038,1760032252925,-500.0,0.0001726,2]
[390372040,1760032252936,-500.0,0.0001726,2]
[390372042,1760032252946,-1656.72,0.0001726,2]
[390372044,1760032252955,-1158.22,0.0001726,2]
[390372046,1760032252965,-1916.39,0.0001726,2]
[390372048,1760032252974,-654.36,0.0001726,2]
[390372050,1760032252985,-500.0,0.0001726,2]
[390372052,1760032252994,-895.21,0.0001726,2]
[390372054,1760032253003,-151.0,0.0001726,2]
[390372056,1760032253012,-151.0,0.0001726,2]
[390372058,1760032253021,-151.0,0.0001726,2]
[390372060,1760032253031,-151.0,0.0001726,2]
[390372062,1760032253040,-1087.8,0.0001726,2]
[390372064,1760032253049,-500.0,0.0001726,2]
[390372066,1760032253057,-500.0,0.0001726,2]
[390372068,1760032253067,-500.0,0.0001726,2]
[390372070,1760032253075,-1787.1,0.0001726,2]
[390372072,1760032253086,-500.0,0.0001726,2]
[390372074,1760032253095,-526.42,0.0001726,2]
[390372076,1760032253104,-500.0,0.0001726,2]
[390372079,1760032253122,-669.14,0.0001726,2]
[390372081,1760032253131,-500.0,0.0001726,2]
[390372083,1760032253140,-687.95,0.0001726,2]
[390372085,1760032253150,-513.61,0.0001726,2]
[390372087,1760032253159,-714.48,0.0001726,2]
[390372089,1760032253168,-500.0,0.0001726,2]
[390372091,1760032253177,-916.57,0.0001726,2]
[390372093,1760032253187,-500.0,0.0001726,2]
[390372095,1760032253195,-516.03,0.0001726,2]
[390372097,1760032253205,-772.16,0.0001726,2]
[390372099,1760032253215,-580.02,0.0001726,2]
[390372101,1760032253224,-518.85,0.0001726,2]
[390372103,1760032253233,-3271.62,0.0001726,2]
[390372105,1760032253242,-500.0,0.0001726,2]
[390372107,1760032253251,-500.0,0.0001726,2]
[390372109,1760032253260,-500.0,0.0001726,2]
[390372111,1760032253269,-151.0,0.0001726,2]
[390372113,1760032253278,-151.0,0.0001726,2]
[390372115,1760032253287,-537.246658,0.0001726,2]
[390372117,1760032253296,-518.4,0.0001726,2]
[390372119,1760032253305,-151.0,0.0001726,2]
[390372121,1760032253314,-537.246658,0.0001726,2]
[390372123,1760032253324,-1739.15,0.0001726,2]
[390372125,1760032253332,-151.0,0.0001726,2]
[390372127,1760032253341,-537.246658,0.0001726,2]
[390372129,1760032253350,-537.246658,0.0001726,2]
[390372131,1760032253360,-627.5,0.0001726,2]
[390372133,1760032253369,-771.2,0.0001726,2]
[390372135,1760032253379,-647.12,0.0001726,2]
[390372137,1760032253387,-1683.54,0.0001726,2]
[390372139,1760032253396,-607.24,0.0001726,2]
[390372141,1760032253405,-500.0,0.0001726,2]
[390372143,1760032253415,-1874.07,0.0001726,2]
[390372145,1760032253424,-1857.75,0.0001726,2]
[390372147,1760032253433,-2208.79,0.0001726,2]
[390372148,1760032253443,-500.0,0.0001726,2]
[390372149,1760032253452,-500.0,0.0001726,2]
[390372150,1760032253462,-1951.45,0.0001726,2]
[390372151,1760032253471,-151.0,0.0001726,2]
[390372152,1760032253481,-914.87,0.0001726,2]
[390372153,1760032253491,-500.0,0.0001726,2]
[390372154,1760032253500,-500.0,0.0001726,2]
[390372155,1760032253511,-500.0,0.0001726,2]
[390372156,1760032253521,-391.16141052,0.0001726,2]
[390372157,1760032253531,-2880.45,0.0001726,2]
[390372158,1760032253540,-753.81,0.0001726,2]
[390372159,1760032253550,-3431.86,0.0001726,2]
[390372160,1760032253560,-2088.23,0.0001726,2]
[390372161,1760032253569,-980.0,0.00017276,2]
[390372176,1760032253744,-630.0,0.00017276,2]
[390372178,1760032253754,-2159.0,0.00017276,2]
[390372180,1760032253765,-150.0,0.00017276,2]
[390372182,1760032253774,-4195.0,0.00017276,2]
[390372184,1760032253784,-273.70002229,0.00017301,2]
[390372186,1760032253794,-190.0,0.00017303,2]
[390372188,1760032253803,-190.0,0.00017306,2]
[390372190,1760032253813,-300.0,0.00017311,2]
[390372192,1760032253824,-300.0,0.00017311,2]
[390372194,1760032253834,-300.0,0.00017311,2]
[390372196,1760032253844,-300.0,0.00017311,2]
[390372198,1760032253853,-300.0,0.00017311,2]
[390372200,1760032253863,-300.0,0.00017311,2]
[390372202,1760032253872,-300.0,0.00017311,2]
[390372204,1760032253882,-300.0,0.00017311,2]
[390372206,1760032253891,-300.0,0.00017311,2]
[390372208,1760032253900,-300.0,0.00017311,2]
[390372210,1760032253911,-300.0,0.00017311,2]
[390372212,1760032253921,-300.0,0.00017311,2]
[390372214,1760032253930,-300.0,0.00017311,2]
[390372216,1760032253940,-300.0,0.00017311,2]
[390372218,1760032253951,-300.0,0.00017311,2]
[390372220,1760032253960,-240.5916,0.00017311,2]
[390372222,1760032253969,-240.5916,0.00017311,2]
[390372224,1760032253979,-240.5916,0.00017311,2]
[390372226,1760032253990,-240.5916,0.00017311,2]
[390372228,1760032254000,-1000.0,0.00017311,2]
[390372230,1760032254009,-1000.0,0.00017311,2]
[390372232,1760032254019,-567.506112,0.00017311,2]
[390372234,1760032254028,-537.246658,0.00017311,2]
[390372236,1760032254038,-537.246658,0.00017311,2]
[390372238,1760032254047,-537.246658,0.00017311,2]
[390372240,1760032254058,-537.246658,0.00017311,2]
[390372242,1760032254068,-322.53435054,0.00017319,2]
[390372244,1760032254077,-600.0,0.00017378,2]
[390372247,1760032254087,-400.376851,0.00017395,2]
[390372249,1760032254097,-151.0,0.000174,2]
[390372251,1760032254107,-190.0,0.00017431,2]
[390372252,1760032254116,-8314.20691663,0.00017434,2]
[390372255,1760032254126,-168.0,0.00017472,2]
[390372256,1760032254135,-538.92284635,0.00017491,2]
[390372259,1760032254145,-200.0,0.00017499,2]
[390372261,1760032254155,-240.5916,0.000175,2]
[390372263,1760032254165,-240.5916,0.000175,2]
[390372265,1760032254174,-240.5916,0.000175,2]
[390372267,1760032254183,-240.5916,0.000175,2]
[390372269,1760032254193,-537.246658,0.000175,2]
[390372271,1760032254203,-537.246658,0.000175,2]
[390372273,1760032254212,-537.246658,0.000175,2]
[390372275,1760032254222,-537.246658,0.000175,2]
[390372276,1760032254232,-151.0,0.000175,2]
[390372278,1760032254242,-17288.02886433,0.000175,2]
[390379843,1760032400786,3000.0,0.00024,30]
[390379850,1760032564299,385.07,0.00015571,2]
[390380112,1760033352721,-1519.54608499,0.00029702,30]
[390380113,1760033352746,-1206.1226605,0.00029702,30]
[390380114,1760033352770,-247.9990201,0.00029702,30]
[390380115,1760033352794,-679.63265222,0.00029702,30]
[390380116,1760033352818,-1875.64253971,0.00029702,30]
[390380117,1760033352841,-633.07627822,0.00029702,30]
[390380118,1760033352865,-906.9931122,0.00029702,30]
[390380119,1760033352889,-1536.5548075,0.00029702,30]
[390380120,1760033352914,-300.0,0.00029702,30]
[390380121,1760033352938,-6464.2026067,0.00029702,35]
[390380122,1760033352963,-7000.0,0.00029702,30]
[390380123,1760033352987,-808.0698933,0.00029702,35]
[390380124,1760033353011,-180104.75733268,0.00029702,30]
[390380125,1760033353034,-377533.15866948,0.00029702,30]
[390380126,1760033353057,-520782.02953426,0.00029702,32]
[390380127,1760033353080,-133671.06217831,0.00029702,60]
[390380128,1760033353105,-2932.98344601,0.00029702,60]
[390380129,1760033353131,-6537.12479643,0.00029702,120]
[390380130,1760033353154,-1460.44749448,0.00029702,120]
[390380131,1760033353179,-988.17784989,0.00029702,120]
[390380132,1760033353204,-269.92247105,0.00029702,60]
[390380133,1760033353229,-1457.93531511,0.00029702,120]
[390380134,1760033353253,-938.34751779,0.00029702,120]
[390380135,1760033353278,-999.999989,0.00029702,120]
[390380136,1760033353303,-911.86069026,0.00029702,60]
[390380137,1760033353332,-108021.51315296,0.00029702,120]
[390380138,1760033353358,-10433.33280632,0.00029702,120]
[390380139,1760033353385,-865.50098422,0.00029702,120]
[390380140,1760033353409,-707.64738634,0.00029702,120]
[390380141,1760033353432,-10267.8499487,0.00029702,31]
[390380142,1760033353454,-240.82074905,0.00029702,120]
[390380143,1760033353478,-75254.0,0.00029702,32]
[390380144,1760033353501,-248.07813401,0.00029702,120]
[390380145,1760033353525,-2913.23997433,0.00029702,120]
[390380146,1760033353550,-2000.0,0.00029702,120]
[390380147,1760033353574,-346.78160547,0.00029702,120]
[390380148,1760033353597,-1127.91793042,0.00029702,120]
[390380149,1760033353623,-2665.70671316,0.00029702,120]
[390380150,1760033353647,-567.96466152,0.00029702,120]
[390380151,1760033353674,-1922.62814067,0.00029702,60]
[390380152,1760033353701,-163.56862224,0.00029702,120]
[390380153,1760033353729,-370.04849268,0.00029702,120]
[390380154,1760033353755,-2909759.02839888,0.00029702,30]
[390380155,1760033353781,-1032.21925905,0.00029702,120]
[390380156,1760033353808,-1468.69208684,0.00029702,120]
[390380157,1760033353834,-5736.54759196,0.00029702,120]
[390380158,1760033353860,-1539.45303843,0.00029702,120]
[390380159,1760033353891,-1146.6125935,0.00029702,120]
[390380160,1760033353916,-1888.52065786,0.00029702,60]
[390380161,1760033353942,-1601.85021125,0.00029702,120]
[390380162,1760033353967,-394344.44753985,0.00029702,30]
[390380163,1760033353992,-436.95097809,0.00029702,120]
[390380164,1760033354016,-10856.1593489,0.00029702,120]
[390380165,1760033354041,-215.74690985,0.00029702,120]
[390380166,1760033354065,-221.16769205,0.00029702,120]
[390380167,1760033354088,-3113.95869734,0.00029702,120]
[390380168,1760033354112,-324.69321145,0.00029702,120]
[390380169,1760033354137,-557.98357662,0.00029702,120]
[390380170,1760033354162,-515.19983603,0.00029702,60]
[390380171,1760033354186,-1320.22381334,0.00029702,60]
[390380172,1760033354210,-5396.49701446,0.00029702,120]
[390380173,1760033354234,-166.51811946,0.00029702,120]
[390380174,1760033354260,-5000.0,0.00029702,120]
[390380175,1760033354286,-545.26006507,0.00029702,120]
[390380176,1760033354316,-2032.76614832,0.00029702,120]
[390380177,1760033354340,-1034.53980247,0.00029702,120]
[390380178,1760033354370,-1203.58937459,0.00029702,120]
[390380179,1760033354394,-224.72996812,0.00029702,120]
[390380180,1760033354418,-7693.94884277,0.00029702,120]
[390380181,1760033354441,-170740.44898117,0.00029702,30]
[390380222,1760033431882,-366.24591135,0.00015787,2]
[390380224,1760033431893,-2629.23534338,0.0001599,2]
[390380227,1760033431903,-200.0,0.000161,2]
[390380229,1760033431912,-300.0,0.00016237,2]
[390380231,1760033431922,-1200.0,0.00016237,2]
[390380232,1760033431932,-300.0,0.00016237,2]
[390380234,1760033431942,-300.0,0.00016237,2]
[390380236,1760033431951,-12331.33024401,0.00016238,2]
[390380509,1760033439957,-8877.38532979,0.00016238,2]
[390381025,1760033445955,-586.36369892,0.00016238,2]
[390385269,1760033547061,500.0,0.00028702,120]
[390385270,1760033547908,500.0,0.00028702,120]
[390385271,1760033548649,500.0,0.00028702,120]
[390385272,1760033549547,500.0,0.00028702,120]
[390385273,1760033550301,500.0,0.00028702,120]
[390385274,1760033551119,500.0,0.00028702,120]
[390385275,1760033551933,500.0,0.00028702,120]
[390385276,1760033552738,500.0,0.00028702,120]
[390385277,1760033553495,500.0,0.00028702,120]
[390385281,1760033554292,500.0,0.00028702,120]
[390385286,1760033555235,500.0,0.00028702,120]
[390385290,1760033556103,500.0,0.00028702,120]
[390385294,1760033556860,500.0,0.00028702,120]
[390385298,1760033557667,500.0,0.00028702,120]
[390385307,1760033567960,151.0,0.0002191,120]
[390385308,1760033568234,151.0,0.00024,120]
[390385309,1760033568385,156.0,0.0002191,120]
[390385310,1760033568413,151.0,0.000219,120]
[390385311,1760033568820,156.0,0.000219,120]
[390385312,1760033568851,151.0,0.0002189,120]
[390385313,1760033569276,156.0,0.0002189,120]
[390385314,1760033569307,151.0,0.0002399,120]
[390385315,1760033569641,151.0,0.000252,120]
[390385316,1760033569908,156.0,0.0002399,120]
[390385317,1760033569943,151.0,0.0002398,120]
[390385318,1760033570164,156.0,0.0002398,120]
[390385319,1760033570206,151.0,0.0002397,120]
[390385320,1760033570606,156.0,0.0002397,120]
[390385321,1760033570645,151.0,0.0002539,120]
[390385322,1760033571065,156.0,0.0002539,120]
[390385323,1760033571100,151.0,0.0002538,120]
[390385324,1760033571129,151.0,0.000264,120]
[390385325,1760033571513,156.0,0.0002538,120]
[390385326,1760033571541,151.0,0.0002689,120]
[390385327,1760033571954,156.08,0.0002688,120]
[390385328,1760033571983,156.0,0.0002689,120]
[390385329,1760033572401,160.22,0.0002688,120]
[390385330,1760033572484,151.0,0.000276,120]
[390385331,1760033578430,1000.0,0.00027397,120]
[390385332,1760033623121,500.0,0.00028702,120]
[390385333,1760033623882,500.0,0.00028702,120]
[390385334,1760033624859,500.0,0.00028702,120]
[390385335,1760033625667,500.0,0.00028702,120]
[390385336,1760033626470,500.0,0.00028702,120]
[390385337,1760033627289,500.0,0.00028702,120]
[390385338,1760033628132,500.0,0.00028702,120]
[390385339,1760033629009,500.0,0.00028702,120]
[390385340,1760033629776,500.0,0.00028702,120]
[390385341,1760033630535,500.0,0.00028702,120]
[390385342,1760033631439,500.0,0.00028702,120]
[390385343,1760033632115,500.0,0.00028702,120]
[390385344,1760033632934,500.0,0.00028702,120]
[390385345,1760033633698,500.0,0.00028702,120]
[390385346,1760033634516,500.0,0.00028702,120]
[390385347,1760033635333,500.0,0.00028702,120]
[390385348,1760033636130,500.0,0.00028702,120]
[390385349,1760033636880,500.0,0.00028702,120]
[390385350,1760033637689,500.0,0.00028702,120]
[390385351,1760033638435,500.0,0.00028702,120]
[390385352,1760033639419,500.0,0.00028702,120]
[390385353,1760033640063,500.0,0.00028702,120]
[390385354,1760033640868,500.0,0.00028702,120]
[390385355,1760033641793,500.0,0.00028702,120]
[390385356,1760033642379,500.0,0.00028702,120]
[390385357,1760033643124,500.0,0.00028702,120]
[390385358,1760033643888,500.0,0.00028702,120]
[390385359,1760033644697,500.0,0.00028702,120]
[390385360,1760033645508,500.0,0.00028702,120]
[390385361,1760033646272,500.0,0.00028702,120]
[390385362,1760033647083,500.0,0.00028702,120]
[390385363,1760033647912,500.0,0.00028702,120]
[390385364,1760033648726,500.0,0.00028702,120]
[390385365,1760033649538,500.0,0.00028702,120]
[390385366,1760033650351,500.0,0.00028702,120]
[390385367,1760033651166,500.0,0.00028702,120]
[390385368,1760033652038,500.0,0.00028702,120]
[390385369,1760033652687,500.0,0.00028702,120]
[390385370,1760033653821,500.0,0.00028702,120]
[390385371,1760033654579,500.0,0.00028702,120]
[390385372,1760033655621,500.0,0.00028702,120]
[390385373,1760033656154,500.0,0.00028702,120]
[390385374,1760033656974,500.0,0.00028702,120]
[390385375,1760033657791,500.0,0.00028702,120]
[390385376,1760033658554,500.0,0.00028702,120]
[390385377,1760033659361,500.0,0.00028702,120]
[390385378,1760033660167,500.0,0.00028702,120]
[390385379,1760033660971,500.0,0.00028702,120]
[390385380,1760033661795,500.0,0.00028702,120]
[390385381,1760033662692,227.65,0.00028702,120]
[390385383,1760033689115,5000.0,0.00017,10]
[390385384,1760033703145,199.999999,0.00028767,120]
[390385385,1760033703373,822.87356709,0.00028767,120]
[390385386,1760033703694,1858.4,0.00028493,120]
[390385387,1760033703965,1858.4,0.0002852,120]
[390385388,1760033704370,1858.4,0.00028547,120]
[390385389,1760033704530,1858.4,0.00028575,120]
[390385390,1760033704793,1858.4,0.00028602,120]
[390385391,1760033705047,1858.4,0.0002863,120]
[390385392,1760033705313,1858.4,0.00028657,120]
[390385393,1760033705575,1858.4,0.00028684,120]
[390385394,1760033705995,1858.4,0.00028712,120]
[390385395,1760033706236,1858.4,0.00028739,120]
[390385396,1760033706499,1858.4,0.00028767,120]
[390385397,1760033711760,480.00000003,0.00017,10]
[390385401,1760033731180,795.3735033,0.00028767,120]
[390385405,1760033795081,1000.0,0.00028493,120]
[390385406,1760033795358,1000.0,0.00028493,120]
[390385407,1760033795750,1000.0,0.00028493,120]
[390385408,1760033795904,1000.0,0.00028493,120]
[390385409,1760033796201,1000.0,0.00028493,120]
[390385410,1760033796495,1000.0,0.00028493,120]
[390385411,1760033796763,1000.0,0.00028493,120]
[390385412,1760033797047,1000.0,0.00028493,120]
[390385413,1760033797308,1000.0,0.00028493,120]
[390385414,1760033797587,1000.0,0.00028493,120]
[390385415,1760033797849,1000.0,0.00028493,120]
[390385416,1760033798133,1000.0,0.00028493,120]
[390385417,1760033798382,1000.0,0.00028493,120]
[390385418,1760033798892,1000.0,0.00028493,120]
[390385419,1760033799184,1000.0,0.00028493,120]
[390385420,1760033799419,1000.0,0.00028493,120]
[390385421,1760033799661,410.70078629,0.00028493,120]
[390385422,1760033805951,1056.02491,0.00028767,120]
[390385423,1760033850786,200.0,0.00028571,120]
[390385424,1760033891867,1000.0,0.00027397,120]
[390385425,1760033928159,605.0,0.0002191,120]
[390385426,1760033928616,605.0,0.000219,120]
[390385427,1760033929110,605.0,0.0002189,120]
[390385428,1760033929509,605.0,0.0002289,120]
[390385429,1760033929945,605.0,0.0002288,120]
[390385430,1760033930415,605.0,0.0002287,120]
[390385431,1760033930861,605.0,0.0002489,120]
[390385432,1760033931330,605.0,0.0002488,120]
[390385433,1760033931784,605.0,0.0002589,120]
[390385434,1760033932350,611.0,0.0002588,120]
[390385436,1760033970789,200.0,0.00028221,120]
[390385440,1760034027613,200.0,0.00027,120]
[390385441,1760034027878,373.65166,0.000279,120]
[390385442,1760034034780,357.661102,0.00015374,2]
[390385443,1760034035074,377.0,0.00028734,120]
[390385444,1760034037174,200.0,0.00027,120]
[390385445,1760034037488,200.0,0.000279,120]
[390386678,1760034098483,550.0,0.000273,120]
[390387827,1760034204102,1000.0,0.00027397,120]
[390388008,1760034287234,1058.330328,0.00013699,2]
[390388009,1760034288132,623.0,0.0002191,120]
[390388010,1760034288563,623.0,0.000219,120]
[390388011,1760034289017,623.0,0.0002189,120]
[390388012,1760034289463,623.0,0.0002319,120]
[390388013,1760034289898,623.0,0.0002318,120]
[390388014,1760034290331,623.0,0.0002317,120]
[390388015,1760034290785,623.0,0.0002489,120]
[390388016,1760034291289,623.0,0.0002488,120]
[390388017,1760034291659,623.0,0.0002589,120]
[390388018,1760034292096,625.0,0.0002588,120]
[390388023,1760034311388,1006.63,0.00028493,120]
[390388025,1760034311857,1006.63,0.0002852,120]
[390388026,1760034311915,1006.63,0.00028547,120]
[390388027,1760034312161,1006.63,0.00028575,120]
[390388028,1760034312455,1006.63,0.00028602,120]
[390388029,1760034312753,1006.63,0.0002863,120]
[390388030,1760034313026,1006.63,0.00028657,120]
[390388032,1760034313321,1006.63,0.00028684,120]
[390388033,1760034313567,1006.63,0.00028712,120]
[390388034,1760034313819,1006.63,0.00028739,120]
[390388035,1760034314163,1006.63,0.00028767,120]
[390388036,1760034336498,226.0,0.00028336,120]
[390388057,1760034450751,200.0,0.00028271,120]
[390388073,1760034476949,251.02170772,0.00025,120]
[390388075,1760034484196,868.80708822,0.0002876,120]
[390388077,1760034500463,339.79249348,0.00028767,120]
[390388079,1760034509047,1630.04150318,0.00026,120]
[390388080,1760034510547,626.10085464,0.0002,120]
[390388081,1760034512536,605.76640251,0.00024108,120]
[390388082,1760034512833,387.40697889,0.00025,120]
[390388083,1760034514166,160.70330535,0.00028,120]
[390388084,1760034515273,1122.49634392,0.00028767,120]
[390388085,1760034515302,1011.92203499,0.00025,120]
[390388086,1760034516122,207.22778292,0.00027,120]
[390388087,1760034517236,1792.50790556,0.00027,120]
[390388088,1760034518568,2068.70756239,0.00024,120]
[390388089,1760034518690,1903.44563349,0.00018,120]
[390388090,1760034519017,1717.87328108,0.00028767,120]
[390388091,1760034519105,208.47887422,0.00025,120]
[390388092,1760034519178,293.39548459,0.00027397,120]
[390388093,1760034519455,224.13372214,0.0001536,120]
[390388094,1760034520134,514.87827106,0.00025,120]
[390388095,1760034520711,1957.4328386,0.000249,120]
[390388096,1760034521874,718.71125697,0.00026,120]
[390388097,1760034522009,367.30073372,0.00026,120]
[390388098,1760034522296,429.80069262,0.00025,120]
[390388099,1760034522490,1130.63240125,0.000286,120]
[390388100,1760034522817,1191.96780336,0.00027,120]
[390388101,1760034524521,209.84566528,0.00026,120]
[390388102,1760034524600,191.85086583,0.00028,120]
[390388103,1760034524762,336.61073677,0.00028,120]
[390388104,1760034524857,200.0,0.000245,120]
[390388105,1760034570718,200.0,0.00028746,120]
[390388106,1760034578188,-611.41609655,0.00015601,2]
[390388107,1760034578208,-3822.87592872,0.0001599,2]
[390388108,1760034578228,-1358.6803716,0.00016056,2]
[390388109,1760034578249,-367.6508608,0.00016075,2]
[390388110,1760034578270,-250.0,0.00016169,2]
[390388111,1760034578292,-190.0,0.00016261,2]
[390388112,1760034578312,-2443.21872181,0.00016268,2]
[390388113,1760034578333,-300.0,0.00016296,2]
[390388114,1760034578353,-318.0,0.00016297,2]
[390388115,1760034578372,-300.0,0.00016298,2]
[390388116,1760034578392,-300.0,0.00016298,2]
[390388117,1760034578412,-300.0,0.00016298,2]
[390388118,1760034578433,-1200.0,0.00016298,2]
[390388119,1760034578454,-821.44062505,0.00016298,2]
[390388120,1760034578475,-500.0,0.00016299,2]
[390388121,1760034578495,-500.0,0.00016299,2]
[390388122,1760034578517,-226.57960262,0.00016299,2]
[390388123,1760034578537,-500.0,0.00016299,2]
[390388124,1760034578557,-500.0,0.00016299,2]
[390388125,1760034578576,-500.0,0.00016299,2]
[390388126,1760034578596,-500.0,0.00016299,2]
[390388127,1760034578615,-34190.13779285,0.000163,2]
[390388128,1760034630722,200.0,0.00028443,120]
[390388185,1760034632160,-738.26584348,0.00015626,2]
[390388187,1760034632170,-300.0,0.00016299,2]
[390388189,1760034632179,-300.0,0.00016299,2]
[390388191,1760034632189,-300.0,0.00016299,2]
[390388193,1760034632198,-362.22215245,0.00016299,2]
[390388196,1760034632215,-259.4066921,0.00016299,2]
[390388198,1760034632226,-500.0,0.00016299,2]
[390388199,1760034632237,-78.37115545,0.00016299,2]
[390388201,1760034632247,-4276.39070458,0.000163,2]
[390388203,1760034632257,-356.51727064,0.000163,2]
[390388205,1760034632268,-316.75310839,0.000163,2]
[390388207,1760034632283,-2182.75889568,0.000163,2]
[390388210,1760034632295,-3060.25803834,0.000163,2]
[390388740,1760034638069,-386.27929141,0.000163,2]
[390388741,1760034638081,-8969.59999988,0.000163,2]
[390388742,1760034638092,-889.04473659,0.000163,2]
[390388743,1760034638126,-2858.41835692,0.000163,2]
[390388744,1760034638141,-16560.27172341,0.000163,2]
[390388772,1760034638634,258.0,0.00026914,120]
[390388938,1760034640052,258.0,0.0002826,120]
[390388952,1760034640171,-480.0,0.00016228,2]
[390388954,1760034640183,-127.07833071,0.00016228,2]
[390388956,1760034640194,-4519.48910718,0.000163,2]
[390388958,1760034640206,-50671.46878878,0.000163,2]
[390388960,1760034640215,-315.27,0.00016328,3]
[390388962,1760034640225,-157.63,0.00016328,3]
[390388964,1760034640234,-472.92,0.00016328,3]
[390388966,1760034640243,-16183.14416563,0.00016338,2]
[390388968,1760034640252,-2950.11031055,0.00016355,2]
[390388970,1760034640261,-500.0,0.00016428,2]
[390388972,1760034640270,-162.380719,0.00016428,2]